bitfinex/quotes_ETHUSD_20240819
["timestamp","ask_amount","ask_price","bid_price","bid_amount"]
[1724049498054,0.94289355,2631.7,2631.6,11.86843466]
[1724049498335,1.36157145,2631.7,2631.6,11.86843466]
[1724049498564,0.94289355,2631.7,2631.6,11.86843466]
[1724049498702,1.36156485,2631.7,2631.6,10.61954]
[1724049499448,1.36156693,2631.7,2631.6,10.61954]
[1724049500151,0.94289355,2631.7,2631.6,10.61954]
[1724049501433,0.14534903,2631.7,2631.6,10.61954]
[1724049501768,0.14534903,2631.7,2631.6,12.077508]
[1724049502991,0.14534903,2631.7,2631.6,14.737478]
[1724049503126,0.14534903,2631.7,2631.6,15.287478]
[1724049503480,0.07441646,2631.7,2631.6,12.627508]
[1724049505563,0.07441646,2631.7,2631.6,15.287478]
[1724049506150,0.07441646,2631.7,2631.6,12.627508]
[1724049507367,1.06825694,2632.2,2632.1,2.65947]
[1724049507572,1.55528933,2632.2,2632.1,2.65947]
[1724049507933,0.48703239,2632.2,2631.9,2.6596]
[1724049508136,0.86077794,2632.1,2631.9,2.6596]
[1724049508470,0.41862707,2632.0,2631.9,2.6596]
[1724049508835,0.41862707,2632.1,2631.9,2.6596]
[1724049509071,0.41862707,2632.0,2631.9,2.6596]
[1724049509492,0.41862707,2632.0,2631.7,2.65986]
[1724049509804,0.41868433,2631.9,2631.7,2.65986]
[1724049509941,1.59487631,2632.1,2631.7,2.65986]
[1724049510141,0.41868366,2632.0,2631.7,2.65986]
[1724049510352,0.41868366,2631.9,2631.7,2.65986]
[1724049510666,1.59487631,2632.1,2631.7,2.65986]
[1724049510995,0.48465171,2632.0,2631.7,2.65986]
[1724049511152,0.41867703,2631.9,2631.7,2.65986]
[1724049511354,0.06591128,2631.8,2631.7,2.65986]
[1724049511803,1.59487631,2632.1,2631.7,2.65986]
[1724049511984,0.48464801,2632.0,2631.7,2.65986]
[1724049512281,0.41867737,2631.9,2631.8,2.65977]
[1724049512482,0.06597064,2632.0,2631.8,2.65977]
[1724049512668,0.06594096,2631.9,2631.8,2.65977]
[1724049513069,1.66328163,2632.2,2631.8,2.65977]
[1724049513285,0.06592513,2631.9,2631.8,2.65977]
[1724049513486,1.66328163,2632.2,2631.8,2.65977]
[1724049513645,0.06592513,2631.9,2631.8,2.65977]
[1724049514169,2.52867505,2632.2,2631.8,2.65977]
[1724049514376,0.48463951,2632.1,2631.8,2.65977]
[1724049514543,0.41865503,2632.0,2631.8,2.65977]
[1724049514749,0.06592513,2631.9,2631.8,2.65977]
[1724049515254,0.41866533,2631.9,2631.8,2.65977]
[1724049515460,0.06592513,2631.9,2631.8,2.65977]
[1724049515662,0.48459046,2631.9,2631.8,2.65977]
[1724049517369,1.2814296,2631.9,2631.7,4.9715]
[1724049517588,0.86276427,2631.9,2631.7,7.6313]
[1724049517994,0.86276427,2631.9,2631.8,2.65977]
[1724049518195,1.28142914,2631.9,2631.8,2.65977]
[1724049518421,0.86276427,2631.9,2631.8,7.512667]
[1724049518702,0.06592513,2631.9,2631.8,9.783967]
[1724049519064,0.06592513,2631.9,2631.8,12.783967]
[1724049519263,0.86524446,2632.2,2632.1,2.65947]
[1724049519469,1.28386202,2632.2,2632.1,2.65947]
[1724049520298,1.28386202,2632.2,2632.1,5.31894]
[1724049520499,1.28386202,2632.2,2632.1,7.76564]
[1724049520500,0.86524446,2632.2,2632.1,7.76564]
[1724049520692,1.283849,2632.2,2632.1,7.76564]
[1724049521082,1.2838547,2632.2,2632.1,7.76564]
[1724049521498,0.86524446,2632.2,2632.1,7.76564]
[1724049521914,1.28384677,2632.2,2632.1,7.76564]
[1724049522531,1.28384918,2632.2,2632.1,7.76564]
[1724049522908,1.34990553,2632.2,2632.1,7.76564]
[1724049523736,0.93130081,2632.2,2632.1,7.76564]
[1724049524094,1.34990412,2632.2,2632.1,7.76564]
[1724049524295,0.55308303,2632.2,2632.1,7.76564]
[1724049524698,1.34994364,2632.2,2632.1,7.76564]
[1724049525352,0.55308303,2632.2,2632.1,7.76564]
[1724049526196,1.34999121,2632.2,2632.1,8.672204]
[1724049527629,1.34999121,2632.2,2632.1,7.76564]
[1724049528534,0.55308303,2632.2,2632.1,7.76564]
[1724049528693,1.34995683,2632.2,2632.1,7.76564]
[1724049528995,0.55308303,2632.2,2632.1,7.76564]
[1724049529403,0.55308303,2632.2,2631.8,5.193127]
[1724049529404,1.74832683,2632.2,2631.9,2.65959]
[1724049529648,1.1952438,2632.0,2631.8,2.65976]
[1724049529826,1.21562608,2631.9,2631.8,2.65976]
[1724049530044,1.61386516,2631.9,2631.8,2.65976]
[1724049530272,1.1952438,2631.9,2631.8,2.65976]
[1724049530571,1.61392536,2631.9,2631.8,2.65976]
[1724049531154,1.6777563,2631.9,2631.8,2.65976]
[1724049532111,0.4825125,2631.9,2631.8,2.65976]
[1724049532313,1.27959082,2631.9,2631.8,2.65976]
[1724049534468,0.86090926,2631.9,2631.8,2.65976]
[1724049534969,1.27955797,2631.9,2631.8,2.65976]
[1724049535315,1.67772345,2631.9,2631.8,2.65976]
[1724049538155,1.67772345,2631.9,2631.8,5.00956]
[1724049538849,1.25907474,2631.9,2631.8,5.00956]
[1724049539018,1.67771647,2631.9,2631.8,5.00956]
[1724049541149,1.67941813,2631.9,2631.8,5.00956]
[1724049541864,2.07736092,2631.9,2631.8,5.00956]
[1724049543327,1.67940121,2631.9,2631.8,5.00956]
[1724049545845,1.67938987,2631.9,2631.8,5.00956]
[1724049546279,1.26074754,2631.9,2631.8,5.00956]
[1724049546456,1.6793892,2631.9,2631.8,8.566272]
[1724049546659,0.4824726,2631.9,2631.8,8.566272]
[1724049547167,1.6793892,2631.9,2631.8,8.566272]
[1724049548360,0.4824726,2631.9,2631.8,8.566272]
[1724049548672,1.28045064,2631.9,2631.8,8.566272]
[1724049549177,1.28045064,2631.9,2631.8,11.226042]
[1724049549351,0.06383094,2631.9,2631.8,14.226042]
[1724049551455,0.79797804,2632.1,2632.0,5.31914]
[1724049551661,1.28050011,2632.1,2632.0,6.61914]
[1724049553756,0.48252207,2632.1,2632.0,6.61914]
[1724049553954,1.28032732,2632.1,2632.0,6.61914]
[1724049554153,1.28032732,2632.1,2632.0,6.93727042]
[1724049554154,0.48252207,2632.1,2632.0,6.93727042]
[1724049554375,1.26083788,2632.1,2632.0,5.31914]
[1724049554712,0.06392128,2632.1,2632.0,5.31914]
[1724049555352,0.86169636,2632.1,2632.0,5.31914]
[1724049556094,0.06392128,2632.1,2632.0,5.31914]
[1724049556295,1.67946012,2632.1,2632.0,2.65957]
[1724049556505,1.67946012,2632.1,2631.9,1.3]
[1724049556506,0.48254352,2632.1,2631.9,2.65964]
[1724049556697,1.61540928,2632.0,2631.8,2.65974]
[1724049557008,1.61540928,2631.9,2631.8,2.65974]
[1724049557343,1.67925503,2631.9,2631.8,2.65974]
[1724049557550,0.48246799,2631.9,2631.8,2.65974]
[1724049557796,1.67925503,2631.9,2631.8,2.65974]
[1724049558097,1.28033355,2631.9,2631.8,2.65974]
[1724049558786,1.28033355,2631.9,2631.8,5.03504]
[1724049559361,1.67925503,2631.9,2631.8,5.03504]
[1724049559575,1.28038168,2631.9,2631.8,5.03504]
[1724049560020,1.28038168,2631.9,2631.8,7.69481]
[1724049560176,1.28039224,2631.9,2631.8,7.69481]
[1724049560368,0.86175944,2631.9,2631.8,8.594291]
[1724049560628,0.06384575,2631.9,2631.8,8.594291]
[1724049561800,0.06384575,2631.9,2631.8,11.254061]
[1724049562603,0.79791369,2632.1,2632.0,5.31914]
[1724049562775,1.21651192,2632.1,2632.0,5.31914]
[1724049564684,0.79791369,2632.1,2632.0,5.31914]
[1724049564868,1.21651658,2632.1,2632.0,5.31914]
[1724049565096,1.21643668,2632.1,2632.0,5.31914]
[1724049566074,1.28032528,2632.1,2632.0,5.31914]
[1724049567501,1.28032528,2632.1,2632.0,6.70004671]
[1724049568203,0.48249149,2632.1,2632.0,9.02694671]
[1724049568401,0.0638886,2632.1,2632.0,9.02694671]
[1724049568706,0.86623911,2632.2,2632.1,5.31894]
[1724049568878,1.28482395,2632.2,2632.1,5.31894]
[1724049569200,0.55095344,2632.2,2632.1,6.35161467]
[1724049569402,0.55096542,2632.2,2632.1,6.35161467]
[1724049570680,1.74775246,2632.2,2632.1,6.35161467]
[1724049571318,0.55096542,2632.2,2632.1,6.35161467]
[1724049573127,1.74775246,2632.2,2632.1,6.35161467]
[1724049573292,1.74775246,2632.2,2632.1,5.31894]
[1724049574503,0.55097076,2632.2,2632.1,5.31894]
[1724049575822,0.55097006,2632.2,2632.1,5.31894]
[1724049576024,1.34861357,2632.2,2632.1,5.31894]
[1724049576316,0.55097006,2632.2,2632.1,6.213524]
[1724049576622,0.55096807,2632.2,2632.1,6.213524]
[1724049576821,1.34865199,2632.2,2632.1,9.907124]
[1724049576985,0.1323686,2632.2,2632.1,9.907124]
[1724049579415,0.1323686,2632.2,2632.1,12.907124]
[1724049580601,0.1323686,2632.2,2632.1,15.566594]
[1724049581016,0.1323686,2632.2,2632.1,15.986894]
[1724049581235,0.06840532,2632.2,2632.1,15.986894]
[1724049584422,0.06840532,2632.2,2632.1,12.777424]
[1724049584933,0.13219948,2632.2,2632.1,12.777424]
[1724049585334,0.06840532,2632.2,2632.1,12.777424]
[1724049590610,0.06840532,2632.2,2632.1,15.436894]
[1724049590803,0.06840532,2632.2,2632.1,12.777424]
[1724049591227,0.06840532,2632.2,2632.1,15.436894]
[1724049591542,0.06840532,2632.2,2632.1,15.986894]
[1724049591757,1.19678704,2632.9,2632.1,15.986894]
[1724049591758,0.79768392,2632.8,2632.7,5.31772]
[1724049591924,0.79768392,2632.8,2632.7,7.81262]
[1724049592271,0.79768392,2632.9,2632.8,5.31752]
[1724049592409,1.21618329,2632.9,2632.8,6.760534]
[1724049593144,0.79768392,2633.0,2632.9,2.65866]
[1724049593344,1.61528197,2633.0,2632.9,2.65866]
[1724049594263,1.21508462,2633.0,2632.9,5.31732]
[1724049594565,1.21508462,2633.0,2632.9,6.114928]
[1724049594761,1.21505607,2633.0,2632.9,6.114928]
[1724049595111,0.79657702,2633.0,2632.9,6.114928]
[1724049595411,0.79657702,2633.2,2633.1,5.31692]
[1724049596262,0.79657702,2633.3,2633.2,2.65836]
[1724049596460,1.21501742,2633.3,2633.2,2.65836]
[1724049596671,0.4184404,2633.3,2633.2,2.65836]
[1724049597184,1.61522744,2633.3,2633.2,2.65836]
[1724049597537,1.9489447,2633.3,2632.9,5.31719]
[1724049597735,0.79607516,2633.1,2633.0,2.65855]
[1724049598039,1.21451556,2633.1,2632.7,5.31759]
[1724049598388,0.79607516,2633.1,2632.8,5.65875]
[1724049599140,0.06179769,2633.0,2632.8,5.65875]
[1724049599339,0.06179769,2633.0,2632.9,2.65866]
[1724049599551,0.79607516,2633.2,2633.1,2.65846]
[1724049600967,0.79607516,2633.3,2633.2,2.65836]
[1724049601130,1.21453299,2633.3,2633.2,2.65836]
[1724049601748,0.79607516,2633.3,2633.2,2.65836]
[1724049601959,0.79607516,2633.3,2633.0,3.95855]
[1724049601960,1.21453503,2633.3,2633.0,2.65848]
[1724049602275,0.79607516,2633.2,2632.8,3.95871]
[1724049602430,1.14553075,2633.1,2633.0,2.65856]
[1724049602626,1.14553075,2633.1,2632.8,2.65868]
[1724049602864,1.20525053,2633.1,2632.8,2.65868]
[1724049603066,0.85579494,2633.1,2632.8,2.65868]
[1724049603928,0.85579494,2633.1,2632.8,5.31735]
[1724049604166,0.85579494,2633.1,2632.8,2.65867]
[1724049604362,0.85579494,2633.1,2632.6,3.95891]
[1724049604697,0.85579494,2633.1,2632.4,1.3]
[1724049604698,1.21458857,2633.0,2632.4,1.3]
[1724049604851,0.79607516,2632.8,2632.5,2.65904]
[1724049605180,0.05962014,2632.7,2632.5,2.65904]
[1724049605465,0.8556953,2632.7,2632.5,2.65904]
[1724049605688,0.79607516,2632.8,2632.5,2.65904]
[1724049605841,0.05959048,2632.6,2632.5,2.65904]
[1724049606023,0.79607516,2632.8,2632.5,5.31805]
[1724049606224,0.05959235,2632.6,2632.5,5.31805]
[1724049606464,0.79607516,2632.8,2632.5,5.31805]
[1724049606664,0.05954802,2632.6,2632.5,5.31805]
[1724049606855,1.19678704,2632.9,2632.5,2.65901]
[1724049606856,0.79607516,2632.7,2632.5,2.65901]
[1724049607055,0.05961277,2632.6,2632.5,3.95901]
[1724049607365,1.19678704,2632.9,2632.8,2.65876]
[1724049607366,0.79607516,2632.9,2632.8,2.65876]
[1724049607571,1.2145945,2632.9,2632.8,2.65876]
[1724049607932,1.2145945,2632.9,2632.8,2.65724141]
[1724049608126,1.21459161,2632.9,2632.8,2.65724141]
[1724049608469,1.21469172,2632.9,2632.8,2.65724141]
[1724049608654,0.79617527,2632.9,2632.8,2.65724141]
[1724049608840,1.19678704,2632.9,2632.8,2.65724141]
[1724049609057,1.21469505,2632.9,2632.8,2.65724141]
[1724049609268,0.41852161,2632.9,2632.8,2.65724141]
[1724049609462,4.34442715,2632.9,2632.6,2.65888]
[1724049609644,0.79623905,2632.8,2632.6,2.65888]
[1724049609844,0.79623905,2632.8,2632.5,2.65905]
[1724049610046,0.05961649,2632.7,2632.6,2.65896]
[1724049610238,0.85585554,2632.7,2632.6,2.65896]
[1724049610759,0.05961649,2632.7,2632.6,2.65896]
[1724049611071,0.05961649,2632.7,2632.6,5.03396]
[1724049611232,0.79623905,2632.8,2632.7,2.65886]
[1724049611436,0.79623905,2632.9,2632.8,2.65876]
[1724049611633,1.2147505,2632.9,2632.8,2.65876]
[1724049612362,0.79623905,2632.9,2632.8,2.65876]
[1724049613167,1.21474492,2632.9,2632.8,2.65876]
[1724049613775,1.27438466,2632.9,2632.8,2.65876]
[1724049613988,1.27438466,2632.9,2632.7,2.65886]
[1724049614274,0.79646547,2632.8,2632.7,2.65881]
[1724049614775,1.27459927,2632.8,2632.7,2.65881]
[1724049614939,1.27459927,2632.8,2632.6,2.65892]
[1724049615142,1.21501292,2632.7,2632.5,2.65898]
[1724049615456,0.85604604,2632.6,2632.5,2.65898]
[1724049615673,1.27460464,2632.6,2632.5,2.65898]
[1724049616052,1.27460506,2632.6,2632.3,9.03671]
[1724049616272,0.85604604,2632.6,2632.4,2.65915]
[1724049616672,0.05958057,2632.6,2632.5,2.65906]
[1724049617080,0.85604604,2632.6,2632.5,2.65906]
[1724049618645,0.05958057,2632.6,2632.5,2.65906]
[1724049619168,0.85604604,2632.6,2632.5,2.65906]
[1724049619365,0.85604604,2632.6,2632.5,6.221772]
[1724049619558,0.05958057,2632.6,2632.5,8.662572]
[1724049621661,0.05958057,2632.6,2632.5,7.75892]
[1724049622013,0.85604604,2632.6,2632.5,2.65906]
[1724049622145,1.27458801,2632.6,2632.5,2.65906]
[1724049623604,1.67490958,2632.6,2632.5,2.65906]
[1724049623823,1.67490958,2632.6,2632.2,2.65931]
[1724049623824,1.67490958,2632.6,2632.2,3.95931]
[1724049624099,0.41854197,2632.5,2632.4,2.65916]
[1724049624284,1.61532901,2632.5,2632.2,2.65929]
[1724049624488,0.79737507,2632.3,2632.2,2.65929]
[1724049624673,1.21594906,2632.3,2632.2,2.65929]
[1724049624873,1.27544635,2632.3,2632.2,2.65929]
[1724049625809,0.85690438,2632.3,2632.2,2.65929]
[1724049626000,1.27549098,2632.3,2632.2,2.65929]
[1724049627098,0.05950149,2632.3,2632.2,7.79616]
[1724049627298,0.05950149,2632.3,2632.2,8.699335]
[1724049627465,0.79740289,2632.5,2632.4,5.31834]
[1724049627801,0.79740289,2632.5,2632.4,6.61834]
[1724049627802,1.2159513,2632.5,2632.4,6.61834]
[1724049627968,0.79740289,2632.5,2632.4,6.61834]
[1724049629119,0.79740289,2632.6,2632.5,2.65906]
[1724049629302,0.41853515,2632.6,2632.5,2.65906]
[1724049629500,1.61532219,2632.6,2632.5,2.65906]
[1724049630183,1.61534116,2632.6,2632.5,2.65906]
[1724049631327,1.67485399,2632.6,2632.5,2.65906]
[1724049631687,1.67485399,2632.6,2632.5,5.03606]
[1724049631688,0.47806695,2632.6,2632.5,5.03606]
[1724049631888,1.67485399,2632.6,2632.5,5.03606]
[1724049632095,1.71651494,2632.6,2632.5,5.03606]
[1724049634193,0.51972525,2632.6,2632.5,5.03606]
[1724049634395,1.71651229,2632.6,2632.5,5.03606]
[1724049634839,1.71650335,2632.6,2632.5,5.03606]
[1724049635045,1.71650335,2632.6,2632.4,3.95909]
[1724049635227,1.61532957,2632.5,2632.4,3.95909]
[1724049635425,1.61535354,2632.5,2632.4,3.95909]
[1724049635602,1.71649135,2632.5,2632.4,3.95909]
[1724049636255,1.71649273,2632.5,2632.4,3.95909]
[1724049636905,1.31686033,2632.5,2632.4,8.92246]
[1724049637107,0.89829245,2632.5,2632.4,8.92246]
[1724049637696,0.10113781,2632.5,2632.4,8.92246]
[1724049639195,0.89829245,2632.5,2632.4,8.92246]
[1724049641107,0.10113781,2632.5,2632.4,8.92246]
[1724049642109,0.10113781,2632.5,2632.4,9.814706]
[1724049645213,0.10113781,2632.5,2632.4,12.473876]
[1724049645942,0.10113781,2632.5,2632.4,9.814706]
[1724049646106,0.10113781,2632.5,2632.4,8.92246]
[1724049646436,1.31683444,2632.5,2632.4,8.92246]
[1724049646633,1.31683444,2632.5,2632.4,7.62246]
[1724049646939,0.5196798,2632.5,2632.4,7.62246]
[1724049647110,0.89829245,2632.5,2632.4,7.62246]
[1724049647702,1.31682589,2632.5,2632.4,7.62246]
[1724049651252,0.89829245,2632.5,2632.4,7.62246]
[1724049651437,1.31683091,2632.5,2632.4,7.62246]
[1724049655539,1.31681996,2632.5,2632.4,7.62246]
[1724049659123,1.31681996,2632.5,2632.4,2.65909]
[1724049659324,1.71645236,2632.5,2632.4,2.65909]
[1724049659547,1.29792485,2632.5,2632.4,2.65909]
[1724049659772,1.71647308,2632.5,2632.4,2.65909]
[1724049661362,1.71647065,2632.5,2632.4,2.65909]
[1724049662476,1.29792485,2632.5,2632.4,2.65909]
[1724049662622,1.71647139,2632.5,2632.4,2.65909]
[1724049663289,1.71647139,2632.5,2632.3,1.3]
[1724049663576,0.41854654,2632.4,2632.3,1.3]
[1724049663738,0.51836107,2632.4,2632.2,2.65936]
[1724049663945,1.61598426,2632.3,2632.2,2.65936]
[1724049664465,1.7157422,2632.3,2632.2,2.65936]
[1724049664802,0.51830448,2632.3,2632.0,5.13795]
[1724049665080,1.59487631,2632.1,2631.9,1.3]
[1724049665257,1.61600448,2632.0,2631.9,3.9596]
[1724049665587,0.51819725,2632.0,2631.9,3.9596]
[1724049665888,1.71565519,2632.0,2631.9,3.9596]
[1724049666384,1.71565519,2632.0,2631.8,2.65971]
[1724049666529,1.21654833,2631.9,2631.8,2.65971]
[1724049666837,2.11314403,2631.9,2631.6,2.6599]
[1724049667037,0.79797166,2631.7,2631.6,2.6599]
[1724049667225,1.21662104,2631.7,2631.6,2.6599]
[1724049667429,1.31618894,2631.7,2631.6,2.6599]
[1724049668357,0.09953366,2631.7,2631.6,2.6599]
[1724049668563,0.79797166,2631.8,2631.6,2.6599]
[1724049668734,0.09953366,2631.7,2631.6,2.6599]
[1724049669066,0.79797166,2631.8,2631.6,2.6599]
[1724049669256,0.09953366,2631.7,2631.6,2.6599]
[1724049669667,0.79797166,2631.8,2631.6,2.6599]
[1724049669893,0.09953366,2631.7,2631.6,2.6599]
[1724049670238,0.79797166,2631.8,2631.6,2.6599]
[1724049670538,0.09617231,2631.7,2631.6,2.6599]
[1724049670740,0.79797166,2631.8,2631.6,2.6599]
[1724049670966,0.09617231,2631.7,2631.6,2.6599]
[1724049671148,0.79797166,2631.8,2631.6,5.1331]
[1724049671348,1.19695749,2632.0,2631.6,5.1331]
[1724049671349,0.09617231,2631.7,2631.6,5.1331]
[1724049671669,0.79797166,2631.9,2631.6,5.1331]
[1724049672270,0.09628874,2631.8,2631.6,5.1331]
[1724049677456,0.79797166,2632.0,2631.6,5.1331]
[1724049677656,0.09626065,2631.7,2631.6,5.1331]
[1724049677862,0.79797166,2632.0,2631.6,5.1331]
[1724049678050,0.09626065,2631.7,2631.6,5.1331]
[1724049678258,1.42288921,2632.0,2631.6,5.1331]
[1724049678459,0.09626065,2631.7,2631.6,5.1331]
[1724049678942,1.42288921,2632.0,2631.6,5.1331]
[1724049679273,0.09631683,2631.9,2631.6,5.1331]
[1724049679474,0.09631683,2631.9,2631.6,7.793]
[1724049679677,0.09631683,2631.9,2631.6,5.1331]
[1724049684388,0.79797166,2632.1,2631.6,5.1331]
[1724049684679,0.89425481,2632.0,2631.6,5.1331]
[1724049686461,0.89425481,2632.0,2631.6,7.79301]
[1724049686657,0.89425481,2632.0,2631.6,7.79299]
[1724049687002,0.09628315,2632.0,2631.8,2.4117]
[1724049687189,8.08797166,2632.2,2631.8,2.4117]
[1724049687190,8.08797166,2632.2,2631.9,2.65967]
[1724049687403,0.0961991,2632.1,2631.9,2.65961]
[1724049688022,0.0961991,2632.1,2631.9,5.31922]
[1724049688531,0.0961991,2632.1,2631.9,2.65961]
[1724049690315,0.0961991,2632.1,2631.9,5.31921]
[1724049690547,0.0961991,2632.1,2631.9,2.6596]
[1724049691612,0.0961991,2632.1,2631.9,4.862712]
[1724049691832,0.0961991,2632.1,2632.0,7.61974]
[1724049692331,7.29,2632.5,2632.4,4.98747]
[1724049692470,0.79797166,2632.6,2632.4,4.98747]
[1724049693581,1.19695749,2632.8,2632.4,4.98747]
[1724049693582,0.79797166,2632.7,2632.4,4.98747]
[1724049694512,0.09642347,2632.6,2632.4,4.98747]
[1724049695250,0.89439513,2632.6,2632.4,4.98747]
[1724049698227,0.79797166,2632.5,2632.4,4.98747]
[1724049698423,0.89436706,2632.5,2632.4,4.98747]
[1724049698631,0.0963954,2632.5,2632.4,4.98747]
[1724049699236,0.79797166,2632.7,2632.5,5.04082]
[1724049699406,0.09179953,2632.6,2632.5,5.04082]
[1724049699791,0.09179953,2632.6,2632.5,8.99988]
[1724049699990,0.09179953,2632.6,2632.5,9.899868]
[1724049700199,0.79797166,2632.9,2632.6,2.65887]
[1724049700519,0.79797166,2632.9,2632.8,2.2589]
[1724049700829,1.21649992,2632.9,2632.8,2.2589]
[1724049700991,0.79797166,2632.9,2632.8,2.2589]
[1724049701193,1.21649901,2632.9,2632.8,2.2589]
[1724049701702,1.30839538,2632.9,2632.8,2.2589]
[1724049702319,0.51042372,2632.9,2632.8,2.2589]
[1724049702519,1.30612995,2632.9,2632.8,2.2589]
[1724049702940,1.30613097,2632.9,2632.8,2.2589]
[1724049703257,0.51043514,2632.9,2632.8,2.2589]
[1724049703457,0.8876032,2632.9,2632.8,4.91766]
[1724049703938,0.51043262,2632.9,2632.8,4.91766]
[1724049704240,1.70739011,2632.9,2632.8,2.65876]
[1724049704547,0.51043262,2632.9,2632.8,2.65876]
[1724049704730,2.03761675,2632.9,2632.4,2.2884]
[1724049705045,0.79573794,2632.7,2632.4,4.9475]
[1724049705539,0.88761025,2632.6,2632.1,5.122]
[1724049705864,0.79573794,2632.5,2632.1,5.122]
[1724049706007,0.79573794,2632.5,2632.4,2.4003]
[1724049706206,0.09183473,2632.5,2632.4,5.05939]
[1724049706636,0.09183473,2632.5,2632.4,6.35939]
[1724049707644,0.09183473,2632.5,2632.4,9.01856]
[1724049708141,0.09183473,2632.5,2632.4,9.920416]
[1724049708355,0.79573794,2632.7,2632.6,4.97211]
[1724049708944,0.88762561,2632.7,2632.6,4.97211]
[1724049709312,0.88762561,2632.7,2632.6,6.27211]
[1724049709518,0.09188767,2632.7,2632.6,6.27211]
[1724049709937,0.79573794,2632.8,2632.6,4.97211]
[1724049710143,0.79573794,2632.8,2632.7,2.65886]
[1724049710350,0.79573794,2632.9,2632.7,2.65886]
[1724049710554,0.79573794,2632.8,2632.7,2.65886]
[1724049711492,0.79573794,2632.9,2632.7,2.65886]
[1724049712237,0.79573794,2632.9,2632.8,2.65876]
[1724049712438,0.79573794,2633.0,2632.8,5.03256]
[1724049712680,1.19695749,2633.0,2632.9,2.65866]
[1724049712972,0.41851747,2633.0,2632.9,2.65866]
[1724049713134,0.41851747,2633.0,2632.8,5.03254]
[1724049713331,0.79554766,2632.9,2632.8,5.03254]
[1724049714041,0.79554766,2632.9,2632.8,2.3738]
[1724049714943,0.79554766,2632.9,2632.8,5.03256]
[1724049715375,0.79554766,2633.0,2632.8,5.03256]
[1724049715788,0.79554766,2632.9,2632.8,5.03256]
[1724049716781,0.79554766,2632.9,2632.8,2.3738]
[1724049717274,0.79554766,2632.9,2632.7,2.65878]
[1724049718175,1.59487631,2633.2,2632.7,2.65878]
[1724049718176,0.79554766,2633.1,2632.9,2.4522]
[1724049718391,0.79554766,2633.4,2633.2,2.65829]
[1724049718679,0.92261646,2633.5,2633.2,2.65829]
[1724049718860,0.92261646,2633.5,2633.2,5.31659]
[1724049719178,0.92261646,2633.5,2633.2,3.95829]
[1724049719365,0.92261646,2633.5,2633.3,2.65825]
[1724049720571,0.92261646,2633.5,2633.2,3.95829]
[1724049720904,0.92261646,2633.5,2633.2,5.31658]
[1724049722289,0.92261646,2633.5,2633.3,2.65824]
[1724049723560,0.1270688,2633.5,2633.3,2.65824]
[1724049731389,0.1270688,2633.5,2633.4,2.3069]
[1724049737128,0.92261646,2633.5,2633.4,2.3069]
[1724049737933,0.1270688,2633.5,2633.4,2.3069]
[1724049738285,0.92261646,2633.5,2633.4,2.3069]
[1724049738593,0.92261646,2633.5,2633.4,4.2129]
[1724049739194,0.1270688,2633.5,2633.4,6.87106]
[1724049742636,0.1270688,2633.5,2633.4,8.17106]
[1724049744937,0.1270688,2633.5,2633.4,6.87106]
[1724049745078,0.92261646,2633.5,2633.4,6.87106]
[1724049745712,0.1270688,2633.5,2633.4,6.87106]
[1724049745935,0.92261646,2633.5,2633.4,6.87106]
[1724049746344,0.1270688,2633.5,2633.4,6.87106]
[1724049746519,0.21903605,2633.5,2633.4,6.87106]
[1724049747420,1.01458371,2633.5,2633.4,6.87106]
[1724049748009,0.21903605,2633.5,2633.4,6.87106]
[1724049751003,0.21903605,2633.5,2633.4,11.912144]
[1724049752329,0.21903605,2633.5,2633.4,10.82922]
[1724049753128,0.21903605,2633.5,2633.4,13.48738]
[1724049770928,0.21903605,2633.5,2633.4,16.69554]
[1724049771295,0.21903605,2633.5,2633.4,19.69554]
[1724049774020,0.21903605,2633.5,2633.4,17.03738]
[1724049774213,0.21903605,2633.5,2633.4,21.399278]
[1724049774361,0.21903605,2633.5,2633.4,18.741118]
[1724049774760,0.21903605,2633.5,2633.4,21.399278]
[1724049776286,0.08648426,2633.5,2633.4,21.399278]
[1724049776486,0.79554766,2634.1,2634.0,5.3151]
[1724049776692,0.086651,2634.1,2634.0,6.6151]
[1724049776878,0.88219866,2634.1,2634.0,6.6151]
[1724049777203,0.086651,2634.1,2634.0,8.8721]
[1724049777908,0.79554766,2634.3,2634.2,2.65735]
[1724049778072,1.21381653,2634.3,2634.2,2.65735]
[1724049778910,1.30052678,2634.3,2634.2,2.65735]
[1724049779390,1.30052798,2634.3,2634.2,2.65735]
[1724049779577,0.88225791,2634.3,2634.2,2.65735]
[1724049779773,1.30052974,2634.3,2634.2,2.65735]
[1724049780029,0.88225791,2634.3,2634.2,2.65735]
[1724049780382,3.70102707,2634.3,2634.2,2.65735]
[1724049780684,1.7019369,2634.3,2634.2,2.65735]
[1724049780905,1.30098769,2634.3,2634.2,2.65735]
[1724049781103,0.88271853,2634.3,2634.2,2.65735]
[1724049781416,1.30099159,2634.3,2634.2,2.65735]
[1724049781823,0.88271853,2634.3,2634.2,2.65735]
[1724049782124,1.3009932,2634.3,2634.2,2.65735]
[1724049782481,0.88271853,2634.3,2634.2,2.65735]
[1724049783176,1.30099294,2634.3,2634.2,2.65735]
[1724049783717,1.30099236,2634.3,2634.2,2.65735]
[1724049784096,1.30099236,2634.3,2634.2,5.3147]
[1724049784297,0.88271853,2634.3,2634.2,5.3147]
[1724049785480,0.08671025,2634.3,2634.2,5.3147]
[1724049785879,0.08671025,2634.3,2634.2,6.07559]
[1724049786122,0.79600828,2634.6,2634.5,5.3141]
[1724049786357,0.88280119,2634.6,2634.5,5.84551]
[1724049786486,0.88280119,2634.6,2634.5,5.3141]
[1724049786688,1.30102647,2634.6,2634.5,5.3141]
[1724049787394,1.70197568,2634.6,2634.5,5.3141]
[1724049787624,0.50501819,2634.6,2634.5,5.3141]
[1724049787925,1.70197568,2634.6,2634.5,5.3141]
[1724049788444,1.70197568,2634.6,2634.5,2.65705]
[1724049788734,4.37856088,2634.6,2634.4,2.65707]
[1724049788961,1.6117738,2634.5,2634.4,2.65707]
[1724049789479,1.30071034,2634.5,2634.4,2.65707]
[1724049789825,0.50500426,2634.5,2634.4,2.65707]
[1724049790024,0.50500426,2634.5,2634.1,1.3]
[1724049790025,2.696882,2634.5,2634.1,2.65736]
[1724049790222,0.79574678,2634.2,2634.1,2.65736]